Cogmind - Beta 16 @@@ ROGUE MODE // 2026.01.25 @ 06:53:55 Player: qwewqetest Result: Escaped! Performance ------------- Evolutions (9) 4500 Regions Visited (28) 5600 Robots Destroyed (491) 2455 Value Destroyed (24629) 24629 Prototype IDs (61) 1220 Alien Tech Used (3) 600 Bonus (14132) 14132 TOTAL SCORE: 53136 Bonus ------- High Alert Combat Kills 6208 Follower Combat Kills 2089 Registered with UFD 300 Met Optimus in HQ 500 Met Zhirov 300 MAIN.C Attacked Warlord 500 Warlord Defense Kills 760 Built Enhanced Grunts 300 Met R17 at Cetus 500 Met R17 at Research 2000 Win 3000 Friendly Fire -2325 Cogmind --------- Core Integrity 104/1600 Matter 194/300 Energy 98/100 System Corruption 13% Temperature Cool (0) Movement Core (50) Location To Epsilon Eridani Parts ------- > --- POWER (2) -------- (None) > --- PROPULSION (5) --- (None) > --- UTILITY (15) ----- (None) > --- WEAPON (4) ------- (None) > --- INVENTORY (5) ---- Light Quantum Reactor Vortex Chain Reactor Biometal Leg KE Penetrator Peak State ------------ > --- POWER ------------ Micro Antimatter Reactor Micro Antimatter Reactor > --- PROPULSION ------- Enhanced Biometal Leg Centrium Leg Heavy Shield Leg > --- UTILITY ---------- Advanced Power Amplifier Experimental Cooling System Large Storage Unit Experimental Energy Well Enhanced Optical Array Advanced Sensor Array Advanced Targeting Computer SHELL Armor Graphene Brace Experimental Thermal Shield Thermal Barrier Improved Hacking Suite > --- WEAPON ----------- Heavy Neutron Cannon Cooled Nova Cannon Helical Railgun Compact Mass Driver > --- INVENTORY -------- Light Antimatter Reactor Micro Antimatter Reactor Vortex Chain Reactor Enhanced Biometal Leg Centrium Leg Centrium Leg Jamming Amplifier Improved Potential Cannon Helical Railgun Helical Railgun Micro-nuke Launcher Vortex Lance [Rating: 202] Favorites ----------- Power Micro Antimatter Reactor Engine Cooled Ion Engine Power Core Micro Fission Core Reactor Micro Antimatter Reactor Propulsion Flexi-carbon Leg Treads Light Treads Leg Flexi-carbon Leg Wheel Wheel Utility Advanced Targeting Computer Device Graphene Brace Storage Large Storage Unit Processor Advanced Targeting Computer Hackware Improved Hacking Suite Protection Centrium Medium Armor Plating Weapon KE Penetrator Energy Gun Enhanced Quantum Rifle Energy Cannon Heavy Neutron Cannon Ballistic Gun KE Penetrator Ballistic Cannon Improved Light Cannon Launcher Micro-nuke Launcher Impact Weapon Gravity Flail Slashing Weapon Axe Piercing Weapon Vortex Lance Build | -11 -10 -9 -9 -9 -8 -8 -8 -8 -8 -6 -6 -6 -6 -6 -5 -5 -5 -5 -4 -4 -4 -4 -4 -3 -3 -3 -2 -1 ------- Run | Yrd Mat Mat Min Exi Min Mat Sto Rec Scr Fac Ext Cet Arc Hub Fac Upp Upp Zhi Pro Fac Upp Upp War Pro Res Tes Res Acc Slots Evolved 18 | . . 2 . . . 2 . . . 4 . . . . 2 . . . . 2 . . . . 2 . 2 2 Power . | . . . . . . . . . . . . . . . . . . . . . . . . . . . . . Propulsion 3 | . . . . . . 1 . . . 1 . . . . . . . . . . . . . . . . . 1 Utility 13 | . . 1 . . . 1 . . . 2 . . . . 2 . . . . 2 . . . . 2 . 2 1 Weapon 2 | . . 1 . . . . . . . 1 . . . . . . . . . . . . . . . . . . Parts Attached 360 | . 8 9 3 . 2 1 31 . 1 33 21 3 4 4 27 1 4 2 4 28 . 8 16 3 54 24 37 32 Power 39 | . . 2 . . 1 . 4 . . 3 1 1 . . 1 . 1 . 1 4 . 1 2 . 5 2 4 6 Engine 10 | . . 2 . . 1 . 3 . . 3 1 . . . . . . . . . . . . . . . . . Core 7 | . . . . . . . 1 . . . . . . . 1 . 1 . 1 1 . 1 . . . 1 . . Reactor 22 | . . . . . . . . . . . . 1 . . . . . . . 3 . . 2 . 5 1 4 6 Propulsion 87 | . 2 2 1 . . . 10 . . 12 7 . 2 2 5 . . 1 2 9 . 2 2 2 12 3 4 7 Treads 10 | . 2 2 1 . . . 5 . . . . . . . . . . . . . . . . . . . . . Leg 75 | . . . . . . . 3 . . 12 7 . 2 2 5 . . 1 2 9 . 2 2 2 12 3 4 7 Wheel 2 | . . . . . . . 2 . . . . . . . . . . . . . . . . . . . . . Hover . | . . . . . . . . . . . . . . . . . . . . . . . . . . . . . Flight . | . . . . . . . . . . . . . . . . . . . . . . . . . . . . . Utility 140 | . 2 2 2 . . . 7 . 1 11 5 2 2 2 15 1 1 1 . 10 . 2 7 1 23 10 21 12 Device 77 | . 1 1 . . . . 1 . . 5 1 . 1 1 12 1 . . . 6 . 1 3 1 13 9 13 7 Storage 15 | . 1 . 1 . . . 1 . 1 2 . . . 1 1 . . . . 2 . . 1 . 1 . 2 1 Processor 21 | . . . 1 . . . 2 . . 2 1 . . . 1 . . . . . . . 2 . 4 1 3 4 Hackware 1 | . . . . . . . . . . . . . . . . . . . . . . . . . . . 1 . Protection 26 | . . 1 . . . . 3 . . 2 3 2 1 . 1 . 1 1 . 2 . 1 1 . 5 . 2 . Artifact . | . . . . . . . . . . . . . . . . . . . . . . . . . . . . . Weapon 94 | . 4 3 . . 1 1 10 . . 7 8 . . . 6 . 2 . 1 5 . 3 5 . 14 9 8 7 Energy Gun 18 | . 2 . . . . . 2 . . . . . . . . . . . . . . 1 3 . 4 1 3 2 Energy Cannon 10 | . . . . . . . 2 . . . . . . . . . . . . . . . . . 2 5 1 . Ballistic Gun 41 | . 1 1 . . 1 1 5 . . 3 6 . . . 6 . 2 . 1 3 . 1 1 . 3 . 3 3 Ballistic Cannon 15 | . 1 2 . . . . . . . 3 1 . . . . . . . . . . . . . 4 2 . 2 Launcher 6 | . . . . . . . . . . 1 1 . . . . . . . . 1 . . . . 1 1 1 . Special Weapon . | . . . . . . . . . . . . . . . . . . . . . . . . . . . . . Impact Weapon 2 | . . . . . . . 1 . . . . . . . . . . . . 1 . . . . . . . . Slashing Weapon 1 | . . . . . . . . . . . . . . . . . . . . . . 1 . . . . . . Piercing Weapon 1 | . . . . . . . . . . . . . . . . . . . . . . . 1 . . . . . Special Melee Weapon . | . . . . . . . . . . . . . . . . . . . . . . . . . . . . . Unidentified Prototypes 48 | . . 3 . . . . 5 . . 2 . 1 2 . 3 1 . 2 . 1 . . 5 . 6 12 5 . Corrupted Parts 6 | . . . . . . . . . . . 1 . . . . . . 1 . . . 3 . . 1 . . . System Corruption 40 | . . . . . . . . . . . 7 . . . . . . 4 . . . 19 . . 10 . . . Parts Lost 103 | . . . . . 2 . 4 . . 13 3 . . . 4 . . . . 22 . 2 . . 9 4 12 28 Power 13 | . . . . . 1 . 1 . . 2 . . . . . . . . . 3 . . . . 1 1 . 4 Propulsion 20 | . . . . . . . 1 . . 3 2 . . . . . . . . 5 . . . . 2 . 1 6 Utility 38 | . . . . . . . 1 . . 4 1 . . . 1 . . . . 8 . 1 . . 2 2 8 10 Weapon 32 | . . . . . 1 . 1 . . 4 . . . . 3 . . . . 6 . 1 . . 4 1 3 8 Highest Loss Streak 12 | . . . . . 2 . 2 . . 7 1 . . . 2 . . . . 12 . 1 . . 2 4 3 9 To Critical Strikes 2 | . . . . . . . . . . 1 . . . . . . . . . . . . . . . . . 1 Average Backups 11 | 6 6 8 9 10 9 10 8 8 8 11 13 13 14 14 13 14 13 13 14 14 9 8 11 14 13 12 11 11 Power 1 | 1 1 3 2 2 2 2 . . . 1 1 1 1 1 1 . . . . . . . . 2 3 3 3 3 Propulsion 2 | 4 4 1 1 1 . . 2 3 3 5 2 2 2 2 2 2 2 2 3 2 . . . 1 2 2 1 . Utility 4 | . . 2 3 5 5 5 2 1 1 1 5 4 5 6 5 7 8 8 8 7 6 6 7 6 3 1 1 2 Weapon 3 | 1 1 2 3 2 2 3 2 4 4 3 3 5 5 5 4 4 3 2 2 3 2 1 2 3 3 6 5 4 Tool/Special . | . . . . . . . . . . . . . . . . . . . . . . . . . . . . . Unused Backups 62 | . 3 9 . . . 1 8 . . 6 6 5 . . . . . 1 1 . . . 2 1 12 2 2 3 Power 15 | . 1 5 . . . . . . . . 2 1 . . . . . . . . . . . 1 3 1 . 1 Propulsion 16 | . . 4 . . . . 3 . . 4 . . . . . . . . . . . . . . 3 . 1 1 Utility 15 | . . . . . . . 2 . . . 3 3 . . . . . 1 1 . . . 2 . 2 . . 1 Weapon 16 | . 2 . . . . 1 3 . . 2 1 1 . . . . . . . . . . . . 4 1 1 . Tool/Special . | . . . . . . . . . . . . . . . . . . . . . . . . . . . . . Average Slot Usage (%) 92 | . 99 98 99 100 98 81 97 100 100 94 99 100 100 100 99 98 100 88 100 96 27 41 92 100 94 93 86 83 Engine 3 | . 14 11 11 11 9 9 8 9 9 5 6 5 6 6 2 . . . . . . . 4 . . . . . Reactor 3 | . . . . . . . . . . . . . . . 1 5 5 5 5 8 . . . 10 9 8 8 6 Treads 3 | . 17 22 22 22 22 18 15 . . . . . . . . . . . . . . . . . . . . . Leg 17 | . 10 . . . . . 8 27 27 25 25 26 26 26 23 22 22 22 22 19 5 8 18 20 17 18 15 15 Device 16 | . 13 12 11 11 11 9 8 9 9 14 13 7 6 6 15 20 21 16 21 26 10 9 18 20 21 28 21 20 Storage 7 | . 14 11 11 11 11 9 9 9 9 9 6 6 6 6 5 5 5 5 5 5 5 5 8 10 9 9 8 3 Processor 9 | . . . 3 11 11 9 13 9 9 6 12 13 13 13 11 11 11 11 11 9 5 5 8 10 12 8 10 16 Protection 6 | . . 9 6 . . . 4 9 9 5 5 12 13 13 11 7 5 11 5 6 . 1 9 10 6 4 4 2 Energy Gun 1 | . 10 . . . . . 1 . . . . . . . . . . . . . . 3 5 10 4 1 1 2 Energy Cannon 1 | . . . . . . . . . . . . . . . . . . . . . . . . . 2 7 5 2 Ballistic Gun 13 | . 15 10 11 11 13 18 23 27 27 14 11 26 26 25 22 22 22 7 21 17 . 2 5 9 2 . 4 3 Ballistic Cannon 4 | . 2 21 22 22 19 9 . . . 6 13 . . . . . . . . . . . . . 3 6 2 3 Peak Build Rating 202 | 6 7 19 18 18 18 17 38 36 37 67 68 82 84 86 114 119 120 123 123 141 44 70 138 139 179 191 202 200 Average Rating 100 | 6 6 16 17 18 17 16 31 36 36 57 65 76 82 85 102 115 116 107 120 129 35 49 114 137 160 176 184 181 On Entrance 73 | 6 6 7 18 18 18 16 17 36 36 37 66 67 79 84 86 114 116 120 123 120 26 38 70 137 138 179 181 180 Avg Prop Armor Cover (%) 9 | . . . . . . . 9 . . . . . . . . . . . . . . . . . . . . . Naked Turns 10 | . . . . . . . . . . . . . . . . . . . . . . . . . . . . 10 Heaviest Build 120 | 12 21 36 36 31 31 25 37 32 42 66 69 74 74 74 79 83 89 87 89 102 25 54 89 95 105 105 120 120 Greatest Support 150 | 20 40 40 40 40 40 40 66 51 51 80 80 77 88 88 96 96 96 104 104 109 28 68 98 98 108 111 120 150 Greatest Overweight (x) 2 | . . . . . . . 2 . . 1 . . . . . . . . . . . . . . . . . 1 Average Overweight (x) . | . . . . . . . . . . . . . . . . . . . . . . . . . . . . . Largest Inventory Capacity 25 | 8 10 10 10 10 10 10 10 10 15 15 15 15 15 15 15 15 15 15 15 25 15 15 15 15 15 15 15 15 Average Capacity 13 | 8 9 10 10 10 10 10 10 10 11 15 15 15 15 15 15 15 15 15 15 15 15 15 15 15 15 15 15 14 Most Carried 15 | 6 7 10 10 10 10 10 10 10 11 15 15 15 15 15 15 15 15 15 15 15 15 15 15 15 15 15 15 15 Average Carried 13 | 6 6 8 9 10 9 10 9 10 10 13 14 14 14 15 14 14 14 14 14 14 11 12 13 14 14 14 14 13 Final Capacity 15 | 8 10 10 10 10 10 10 10 10 15 15 15 15 15 15 15 15 15 15 15 15 15 15 15 15 15 15 15 5 Final Carried 15 | 6 7 10 10 10 10 10 10 10 11 14 15 15 15 15 15 15 15 15 15 11 15 10 15 15 15 15 13 5 Class Distribution -------------------- 30% | Scavenger-Tank 20% | Gunner 13% | Scavenger-Gunner 7% | Tank 6% | Mutant 5% | Skirmisher 5% | Scavenger-Mutant 5% | Commander-Gunner Dominant Class ---------------- Mutant | -10/Materials Tank | -9/Materials Tank | -9/Mines Gunner | -9/Exiles Gunner | -8/Mines Gunner | -8/Materials Gunner | -8/Storage Gunner | -8/Recycling Gunner | -8/Scraptown Gunner | -6/Factory Scavenger-Gunner | -6/Extension Commander-Gunner | -6/Cetus Commander-Gunner | -6/Archives Scavenger-Gunner | -6/Hub_04(d) Scavenger-Tank | -5/Factory Scavenger-Tank | -5/Upper Caves Scavenger-Tank | -5/Upper Caves Scavenger-Mutant | -5/Zhirov Scavenger-Tank | -4/Proximity Caves Scavenger-Tank | -4/Factory Mutant | -4/Upper Caves Scavenger-Mutant | -4/Upper Caves Scavenger-Mutant | -4/Warlord Scavenger-Tank | -3/Proximity Caves Scavenger-Gunner | -3/Research Infiltrator-Tank | -3/Testing Skirmisher | -2/Research Skirmisher | -1/Access Resources | -11 -10 -9 -9 -9 -8 -8 -8 -8 -8 -6 -6 -6 -6 -6 -5 -5 -5 -5 -4 -4 -4 -4 -4 -3 -3 -3 -2 -1 ----------- Run | Yrd Mat Mat Min Exi Min Mat Sto Rec Scr Fac Ext Cet Arc Hub Fac Upp Upp Zhi Pro Fac Upp Upp War Pro Res Tes Res Acc Matter Collected 20497 | 200 173 622 228 . 275 . 1196 53 10 2144 1878 360 280 438 2105 245 384 181 224 1728 156 320 516 259 2444 644 1947 1487 Remotely 672 | . . . . . . . . . . 672 . . . . . . . . . . . . . . . . . . Salvage Created 23165 | . 303 642 198 . 194 . 1452 105 . 2375 2553 420 110 134 2464 256 419 227 173 2748 86 299 204 246 2848 541 2209 1959 Parts 1047 | . 23 52 15 . 9 . 84 8 . 110 105 24 7 3 122 6 27 2 7 119 2 5 5 11 97 20 103 81 Haulers Intercepted 16 | . 2 2 . . . . 6 . . . 2 . . 1 2 . . . . . . . . . 1 . . . Recyclers Shooed 19 | . 3 . . . . . 2 . . 2 3 . . 1 2 . . . . 2 . . . . 1 2 1 . Parts Field Recycled . | . . . . . . . . . . . . . . . . . . . . . . . . . . . . . Retrieved Matter . | . . . . . . . . . . . . . . . . . . . . . . . . . . . . . Parts Self-Destructed 84 | . . . . . . . . . . . . . . . . 6 26 . 40 . 1 3 . 8 . . . . Prevented 4 | . . . . . . . . . . . . . . . . . . . 3 . . 1 . . . . . . Parts Restored . | . . . . . . . . . . . . . . . . . . . . . . . . . . . . . Kills | -11 -10 -9 -9 -9 -8 -8 -8 -8 -8 -6 -6 -6 -6 -6 -5 -5 -5 -5 -4 -4 -4 -4 -4 -3 -3 -3 -2 -1 ------- Run | Yrd Mat Mat Min Exi Min Mat Sto Rec Scr Fac Ext Cet Arc Hub Fac Upp Upp Zhi Pro Fac Upp Upp War Pro Res Tes Res Acc Combat Hostiles Destroyed 398 | . 8 20 9 . 8 . 18 1 . 38 38 5 . . 28 4 13 . 3 45 . 3 7 7 48 13 41 41 Melee 8 | . . . . . . . . . . 3 . . . . . . . . . 1 . . . . . . . 4 Guns 206 | . 6 10 1 . 4 . 18 1 . 19 14 5 . . 27 4 13 . 3 37 . 1 7 3 22 . 6 5 Cannons 127 | . 2 10 8 . 4 . . . . 10 18 . . . . . . . . . . . . . 15 10 27 23 AOE 46 | . . . . . . . . . . 3 4 . . . 1 . . . . 7 . 1 . 4 9 3 7 7 Classes Destroyed 24 | . 5 3 . . 1 . 2 . . 4 1 . . . . . . . 1 1 1 . 1 . 2 . 1 1 Worker 18 | . . 2 . . . . 6 . . 3 1 . . . 2 . . . . 2 . . . . . . 1 1 Builder 5 | . . . . . . . . . . 1 1 . . . . . . . . 1 . . . . . . . 2 Tunneler 10 | . 1 . . . . . . . . 2 3 . . . 1 . . . . 1 . . . . . . 2 . Hauler 16 | . 2 2 . . . . 6 . . . 2 . . 1 2 . . . . . . . . . 1 . . . Recycler 14 | . . . . . . . 2 . . 3 3 . . . 2 . . . . 1 . . . . 1 1 1 . Carrier 2 | . . . . . . . . . . . . . . . . . . . . 1 . . . . 1 . . . Minesweeper 1 | . . . . . . . . . . . . . . . . . . . . . 1 . . . . . . . Mechanic 3 | . . . . . . . . . . 2 . . . . . . . . . . . . . . . . 1 . Operator 1 | . . . . . . . . . . . . . . . . . . . . . . . . . . . 1 . Drone 12 | . . . . . . . . . . . . . . . . . . . 1 . . . . . . . . 11 Watcher 19 | . 2 2 . . . . 1 . . 1 . . . 1 5 . . . . 1 . . . . 1 . . 5 Swarmer 78 | . 6 9 4 . 3 . . . . 4 4 . . . . . 10 . . 12 . . 4 3 9 4 5 1 Saboteur 1 | . . . . . . . . . . . . . . . . . . . . . . . . . . . . 1 Grunt 108 | . 2 5 4 . 3 . 7 . . 12 16 . . . 8 3 . . 1 11 . 3 . 3 18 4 3 5 Brawler 9 | . . 1 1 . 1 . . . . 1 . . . . . 1 . . . . . . 1 . 1 1 1 . Duelist 12 | . . . . . 1 . . . . 4 4 . . . . . . . 1 . . . . 1 1 . . . Sentry 54 | . . 5 . . . . 10 1 . 5 9 . . . 3 . 1 . . 5 . . . . 5 . 7 3 Demolisher 3 | . . . . . . . . . . . . . . . . . . . . . . . . . 3 . . . Specialist 4 | . . . . . . . . . . 2 . . . . . . . . . 2 . . . . . . . . Hunter 32 | . . . . . . . 1 . . 6 3 . . . 3 . . . . 6 . . 1 . 3 . 5 4 Programmer 70 | . . . . . . . . . . 4 . . . . 14 . 2 . . 9 . . . . 1 4 20 16 Behemoth 3 | . . . . . . . . . . . 2 . . . . . . . . . . . . . 1 . . . Cetus Guard 5 | . . . . . . . . . . . . 5 . . . . . . . . . . . . . . . . Enhanced Grunt 1 | . . . . . . . . . . . . . 1 . . . . . . . . . . . . . . . Striker 7 | . . . . . . . . . . . . . . . . . . . . . . . 1 . 6 . . . Packrat 1 | . . . . . . . . . . . . . . . . . . . . . 1 . . . . . . . Savage 1 | . . . . . . . . . . . 1 . . . . . . . . . . . . . . . . . Revision 1 | . . . . . . . . . . . . . . . . . . . . . . . . . 1 . . . Best Kill Streak 13 | . 4 5 3 . 3 . 8 1 . 5 13 4 . 1 5 2 4 . 2 9 1 2 5 4 8 4 8 10 Combat Bots Only 10 | . 3 5 3 . 3 . 5 1 . 4 10 4 . . 4 2 4 . 2 8 . 2 5 4 8 4 7 7 Max Kills in Single Turn 3 | . 1 2 1 . 2 . 3 1 . 3 2 1 1 1 2 2 3 . 1 3 1 1 2 2 3 2 2 3 Gunslinging 1 | . . . . . . . 1 . . . . . . . . 1 1 . . 1 . . 1 . 1 . . . Exploded 3 | . . . . . . . . . . 2 2 . . . 1 . . . . 2 . 1 . 2 3 2 2 2 Melee 1 | . . . . . . . . . . 1 . . . . . . . . . 1 . . . . . . . 1 Uniques/NPCs Destroyed 1 | . . . . . . . . . . . . 1 . . . . . . . . . . . . . . . . A7 (-6/Cetus) Combat | -11 -10 -9 -9 -9 -8 -8 -8 -8 -8 -6 -6 -6 -6 -6 -5 -5 -5 -5 -4 -4 -4 -4 -4 -3 -3 -3 -2 -1 -------- Run | Yrd Mat Mat Min Exi Min Mat Sto Rec Scr Fac Ext Cet Arc Hub Fac Upp Upp Zhi Pro Fac Upp Upp War Pro Res Tes Res Acc Hostile Shots Fired 3397 | . 32 63 33 . 55 . 89 4 . 392 169 6 4 42 198 12 52 . 10 479 . 32 68 35 294 95 534 699 Missed 1142 | . 5 13 6 . 15 . 27 2 . 149 64 1 1 15 57 3 22 . 5 178 . 15 30 14 117 32 171 200 Deflected 7 | . . . . . . . . . . . . . . . . . . . . . . . . . . . 7 . Hits 2255 | . 27 50 27 . 40 . 62 2 . 243 105 5 3 27 141 9 30 . 5 301 . 17 38 21 177 63 363 499 Melee 45 | . . . . . 6 . . . . 5 . . . 6 . 1 . . . . . . . 1 13 2 7 4 Projectile 2210 | . 27 50 27 . 34 . 62 2 . 238 105 5 3 21 141 8 30 . 5 301 . 17 38 20 164 61 356 495 AOE 12 | . . . . . . . . . . . . . . . . . . . . . . . 1 . 6 . . 5 Critical Strikes 155 | . . 1 . . 2 . 2 . . 3 1 3 . 4 11 2 . . . 16 . 1 3 4 5 4 23 70 Actively Blocked 117 | . . . . . . . . . . . . . . . . . . . . 13 . 1 3 4 5 4 23 64 Part Disruptions 11 | . . . . . . . . . . . . . . . . . . . . 3 . . . . . 1 5 2 Damage Taken 39277 | . 234 551 312 . 601 23 972 27 . 3058 1374 66 118 629 2593 204 250 . 42 4570 . 352 380 258 3946 1142 7137 10438 Core 4558 | . 28 76 26 . 124 . 91 . . 341 213 14 . 86 200 53 31 . . 695 . 102 52 20 438 70 402 1496 Absorbed by Shields 4786 | . . . . . . . . . . . 282 63 . . . . 266 . 43 680 . . 358 270 845 416 1563 . Ignored by Resistances 808 | . . . . . . . . . . 205 . . . . 96 . . . . 367 . . . . . 25 115 . Regen/Repaired (Parts) 5216 | . . 94 . . . . . . . . . . . . . . . . . 22 . . 288 . . . 2845 1967 Core Remaining (%) 56 | 100 88 . . . 43 . . . 83 . . . . 23 . . . . 71 . . . . 24 . 57 72 6 Volleys Fired 1253 | . 48 47 16 . 19 . 86 4 . 114 76 14 8 16 110 8 22 . 6 86 3 9 16 14 135 71 188 137 Largest 4 | . 2 3 3 . 3 . 3 3 . 4 4 4 4 4 4 4 4 . 4 4 1 2 4 4 4 4 4 4 Hottest 312 | . 100 89 89 . 89 . 104 75 . 130 152 132 132 132 138 136 136 . 136 136 33 108 219 238 258 312 252 297 Shots Fired 3524 | . 96 141 49 . 55 . 258 12 . 364 265 56 31 63 346 33 84 . 23 316 3 13 51 38 398 137 384 308 Gun 2332 | . 90 47 17 . 22 . 257 12 . 255 106 56 31 63 343 33 84 . 23 309 3 12 51 33 237 15 124 109 Cannon 1130 | . 6 94 32 . 33 . 1 . . 101 148 . . . . . . . . . . . . . 151 120 252 192 Launcher 62 | . . . . . . . . . . 8 11 . . . 3 . . . . 7 . 1 . 5 10 2 8 7 Special . | . . . . . . . . . . . . . . . . . . . . . . . . . . . . . Kinetic 2703 | . 75 141 49 . 55 . 215 12 . 356 254 56 31 63 343 33 84 . 23 309 3 2 25 13 208 46 149 158 Thermal 705 | . 21 . . . . . 43 . . . . . . . . . . . . . . 10 26 20 130 85 227 143 Explosive 40 | . . . . . . . . . . . . . . . . . . . . 7 . 1 . 5 10 2 8 7 Electromagnetic 76 | . . . . . . . . . . 8 11 . . . 3 . . . . . . . . . 50 4 . . Robot Hit Streak 30 | . 6 21 5 . 12 . 21 8 . 15 17 14 17 5 30 5 6 . 6 18 . 5 5 6 30 10 18 9 Robot Miss Streak 9 | . 3 7 2 . 3 . 3 1 . 5 5 3 1 4 5 4 5 . 4 4 . 3 5 6 7 4 4 9 Penetration Max 3 | . . . . . . . . . . . 3 1 . 1 1 . 1 . . 1 . . 1 . 1 . 1 1 Secondary Targets 36 | . 1 . . . . . 3 . . 3 . 2 . . 3 2 4 . . 12 . . 3 . 3 . . . Max Gunslinging Chain 2 | . 1 . . . . . 1 . . 1 . 1 . . 1 1 2 . . 2 . . 2 . 1 . . . Shots Hit Robots 2010 | . 54 72 25 . 37 . 174 9 . 246 176 40 28 36 185 17 41 4 10 187 2 13 19 19 241 51 192 132 Core Hits 1012 | . 23 31 10 . 11 . 60 4 . 102 135 18 8 20 84 8 16 . 5 115 2 4 9 16 142 23 86 80 Critical Kills 51 | . . . . . . . . . . 2 7 5 1 1 17 1 2 . 1 11 . . . . 1 . . 2 Critical Parts Destroyed 96 | . . . . . . . . . . 7 18 5 6 14 24 2 4 . 1 12 . 1 . . . . 1 1 Critical Strikes 225 | . 2 4 4 . 3 . 2 . . 14 35 15 11 16 43 3 8 1 2 24 . 1 2 . 11 2 10 12 Burn 14 | . 2 . . . . . 1 . . . . . . . . . . . . . . . 2 . 6 . 3 . Meltdown 2 | . . . . . . . . . . . . . . . . . . . . . . . . . . . . 2 Destroy 154 | . . . . . . . 1 . . 3 26 15 11 15 42 3 8 . 2 24 . . . . 1 . 2 1 Blast 42 | . . 4 4 . 3 . . . . 5 9 . . . . . . . . . . . . . 4 2 5 6 Smash 10 | . . . . . . . . . . 6 . . . 1 1 . . 1 . . . 1 . . . . . . Sunder 3 | . . . . . . . . . . . . . . . . . . . . . . . . . . . . 3 Melee Attacks 112 | . . . . . . . . . . 35 . . . 4 8 . . 4 . 19 9 7 12 . . 1 . 13 Impact 92 | . . . . . . . . . . 35 . . . 4 8 . . 4 . 19 9 4 9 . . . . . Slashing 6 | . . . . . . . . . . . . . . . . . . . . . . 3 3 . . . . . Piercing . | . . . . . . . . . . . . . . . . . . . . . . . . . . . . . Entropic 14 | . . . . . . . . . . . . . . . . . . . . . . . . . . 1 . 13 Sneak Attacks 4 | . . . . . . . . . . 1 . . . . . . . . . . 2 . . . . 1 . . Combat Hostiles . | . . . . . . . . . . . . . . . . . . . . . . . . . . . . . Follow-up Attacks 1 | . . . . . . . . . . . . . . . . . . . . . . 1 . . . . . . Damage Inflicted 66535 | . 546 1404 526 . 730 . 2993 158 . 6637 5653 297 186 470 4224 457 1185 451 284 7426 147 611 444 1072 9224 3105 10030 8275 Guns 29417 | . 462 376 88 . 271 . 2926 149 . 2719 1025 297 186 376 3592 457 1185 . 268 5921 . 131 444 426 3826 223 2654 1415 Cannons 22936 | . 84 1010 437 . 456 . 19 . . 2076 3012 . . . . . . . . . . . . . 3878 2097 6066 3801 Explosions 10664 | . . . . . . . . . . 812 1598 . . . 489 . . . . 1380 . 153 . 646 1479 519 1284 2304 Melee 2746 | . . . . . . . . . . 998 . . . 45 63 . . 451 . . 147 327 . . . 131 . 584 Ramming 772 | . . 18 1 . 3 . 48 9 . 32 18 . . 49 80 . . . 16 125 . . . . 41 135 26 171 Kinetic 39836 | . 397 1386 525 . 727 . 2480 149 . 4795 4037 297 186 376 3592 457 1185 . 268 5921 . 22 202 251 4652 1122 3588 3221 Thermal 12763 | . 149 . . . . . 465 . . 269 539 . . . 184 . . . . . . 109 242 175 2164 1163 5199 2105 Explosive 7406 | . . . . . . . . . . . . . . . . . . . . 1198 . 153 . 646 1479 519 1217 2194 Electromagnetic 3012 | . . . . . . . . . . 543 1059 . . . 305 . . . . 182 . . . . 888 35 . . Impact 1854 | . . . . . . . . . . 998 . . . 45 63 . . 451 . . 147 150 . . . . . . Slashing 177 | . . . . . . . . . . . . . . . . . . . . . . 177 . . . . . . Piercing . | . . . . . . . . . . . . . . . . . . . . . . . . . . . . . Entropic 715 | . . . . . . . . . . . . . . . . . . . . . . . . . . 131 . 584 Highest Corruption 39 | . 1 2 2 2 2 . 1 1 . 1 9 9 9 9 15 15 16 20 20 5 5 24 24 24 11 25 39 13 Average Corruption 10 | . 1 1 2 2 2 . 1 1 . 1 7 9 9 9 6 15 15 18 20 2 5 17 24 24 10 18 21 6 Corruption Purged 6 | . . . . . . . . . . . . . . . . . . . . . . . . . . . 6 . Corruption Blocked . | . . . . . . . . . . . . . . . . . . . . . . . . . . . . . Effects 736 | . . 10 10 3 9 . 3 7 . 7 51 14 7 16 61 35 54 13 40 32 18 29 74 22 37 50 102 32 Message Errors 171 | . . 3 1 . 3 . . 2 . 4 9 7 1 3 18 6 16 3 12 6 6 4 14 7 9 11 17 9 Matter Fused 181 | . . 1 2 2 4 . . 1 . 1 14 2 2 6 18 9 9 5 10 8 6 7 20 3 10 10 22 9 Heat Flow Errors 83 | . . 3 3 1 . . 1 1 . . 5 2 . 1 7 2 8 2 4 3 2 4 13 1 2 7 8 3 Energy Discharges 87 | . . 2 2 . 1 . . 1 . 1 4 . 1 3 4 9 10 1 5 2 2 6 9 2 3 3 9 7 Parts Rejected 11 | . . . . . . . . . . . 1 . . . . . . . . 2 . . . . 2 . 5 1 Parts Fused 9 | . . . . . . . . . . . . . . . . . . . 1 1 1 1 2 1 . . 1 1 Data Loss (minor) 76 | . . . 1 . . . 1 1 . 1 8 2 1 . 5 4 6 1 4 3 1 3 6 2 3 11 11 1 Data Loss (major) 22 | . . 1 . . 1 . . 1 . . 1 1 1 . 1 1 . 1 1 3 . . 1 1 1 2 4 . Misfires 22 | . . . 1 . . . . . . . . . . 1 3 3 2 . 1 1 . 3 3 . 1 2 1 . Alerts 12 | . . . . . . . 1 . . . . . . 1 . 1 1 . 2 . . 1 2 1 1 . 1 . Misdirections 8 | . . . . . . . . . . . . . . . . . . . . . . . . . 1 1 6 . Weapon Failures 54 | . . . . . . . . . . . 9 . 1 1 5 . 2 . . 3 . . 4 4 4 3 17 1 Overload Shots 3 | . . . . . . . . . . . . . . . . . . . . . . . . . . 3 . . Effects 1 | . . . . . . . . . . . . . . . . . . . . . . . . . . 1 . . Heat Surge 1 | . . . . . . . . . . . . . . . . . . . . . . . . . . 1 . . Overflow Damage 2109 | . . 5 . . 11 . . . . 519 47 . . 45 71 . . 286 . 5 . 62 . 43 149 239 316 311 Projectiles 892 | . . 5 . . 11 . . . . 113 33 . . . . . . . . . . . . . 132 149 314 135 Explosions 275 | . . . . . . . . . . 25 14 . . . 8 . . . . 5 . . . 43 17 29 . 134 Melee 942 | . . . . . . . . . . 381 . . . 45 63 . . 286 . . . 62 . . . 61 2 42 Knockbacks 110 | . . 4 5 . 7 . 1 . . 21 20 . . . 1 . . . . . . . . . 23 9 6 13 Impact 8 | . . . . . . . 1 . . 5 . . . . 1 . . . . . . . . . . 1 . . Kinetic 95 | . . 4 4 . 7 . . . . 15 18 . . . . . . . . . . . . . 20 8 6 13 Secondary 7 | . . . 1 . . . . . . 1 2 . . . . . . . . . . . . . 3 . . . Self-Inflicted Damage 248 | . . . . . . . 10 . . 21 . . . . 12 . . . . . . . . 84 . 37 82 2 Shots 8 | . . . . . . . . . . 2 . . . . 1 . . . . . . . . 1 . 1 2 1 Rammed 13 | . 1 2 2 . 1 . 7 . . . . . . . . . . . . . . . . . . . . . Targets Rammed 69 | . 1 2 2 . 1 . 8 1 . 4 4 . . 6 5 . . . 1 9 . . . . 2 7 3 13 Kicked 55 | . . . . . . . . 1 . 4 4 . . 6 5 . . . 1 9 . . . . 2 7 3 13 Crushed 1 | . . . . . . . 1 . . . . . . . . . . . . . . . . . . . . . Highest Temperature 426 | . 140 238 229 182 15 . 242 203 . 153 333 187 194 188 242 107 243 113 199 239 256 226 257 273 426 254 242 284 Average Temperature 76 | . 42 99 78 114 15 . 102 141 . 37 84 96 99 66 62 41 64 70 60 47 106 102 93 92 106 95 68 69 Received Heat Transfer 4865 | . 36 156 144 . 225 . 378 9 . 534 227 . 18 127 504 90 4 . 11 601 . 87 4 38 374 71 297 930 Effects 6 | . . . . . . . . . . . 1 . . . . . . . . . . . 2 . 3 . . . Shutdowns 1 | . . . . . . . . . . . 1 . . . . . . . . . . . . . . . . . Interference 2 | . . . . . . . . . . . . . . . . . . . . . . . 2 . . . . . Matter Decay 2 | . . . . . . . . . . . . . . . . . . . . . . . . . 2 . . . Short Circuit 1 | . . . . . . . . . . . . . . . . . . . . . . . . . 1 . . . Siege Activations . | . . . . . . . . . . . . . . . . . . . . . . . . . . . . . Martial Activations . | . . . . . . . . . . . . . . . . . . . . . . . . . . . . . Shielding Activations 1 | . . . . . . . . . . . . . . . . . . . . . . . . . . . 1 . Total Turns 36 | . . . . . . . . . . . . . . . . . . . . . . . . . . . 36 . Longest Duration 36 | . . . . . . . . . . . . . . . . . . . . . . . . . . . 36 . Robots Disrupted 4 | . . . . . . . . . . . 1 . . . . . . . . . . . . . 1 1 1 . Combat Hostiles 2 | . . . . . . . . . . . . . . . . . . . . . . . . . . 1 1 . Robots Corrupted 11 | . . . . . . . . . . 3 2 . . . 1 . . 1 . . . 1 . . 3 . . . Combat Hostiles 9 | . . . . . . . . . . 3 2 . . . . . . 1 . . . 1 . . 2 . . . Parts Fried 13 | . . . . . . . . . . 3 3 . . 2 2 . . 1 . . . . . . 2 . . . Impact Corruptions 29 | . . . . . . . . . . 11 . . . 2 3 . . 9 . . . 3 . . . . 1 . Robots Melted 3 | . . . . . . . . . . . . . . . . . . . . . . . . . . . 1 2 Combat Hostiles 3 | . . . . . . . . . . . . . . . . . . . . . . . . . . . 1 2 Parts Melted 15 | . . . . . . . 3 . . 1 . . . . 1 . . . . . . . 1 . 4 . 4 1 Heat Transferred 12671 | . 592 . . . . . 1258 . . 250 550 . . . 100 . . . . . . 250 555 296 3566 444 2993 1817 Parts Sabotaged . | . . . . . . . . . . . . . . . . . . . . . . . . . . . . . Parts Stolen . | . . . . . . . . . . . . . . . . . . . . . . . . . . . . . Parts Stripped . | . . . . . . . . . . . . . . . . . . . . . . . . . . . . . Power Chain Reactions 7 | . . . . . . . . . . 2 4 . . . . . . . . . . . . . . . 1 . Alert | -11 -10 -9 -9 -9 -8 -8 -8 -8 -8 -6 -6 -6 -6 -6 -5 -5 -5 -5 -4 -4 -4 -4 -4 -3 -3 -3 -2 -1 ------- Run | Yrd Mat Mat Min Exi Min Mat Sto Rec Scr Fac Ext Cet Arc Hub Fac Upp Upp Zhi Pro Fac Upp Upp War Pro Res Tes Res Acc Maximum Alert Level 4 | . . 1 . . . . 2 . . 3 4 3 2 3 3 . . . . 4 . . . . 3 2 4 4 Low Security (%) 24 | 100 100 27 100 . 100 100 68 100 . 32 . . . 7 2 . . . . 11 . . . . 5 . 8 . Level 1 22 | . . 72 . . . . 24 . . 19 . . 22 63 50 . . . . 34 . . . . 10 22 25 . Level 2 24 | . . . . . . . 7 . . 33 57 . 77 9 34 . . . . 12 . . . . 57 77 14 . Level 3 19 | . . . . . . . . . . 14 7 100 . 19 12 . . . . 33 . . . . 25 . 16 67 Level 4 9 | . . . . . . . . . . . 35 . . . . . . . . 8 . . . . . . 34 32 Level 5 . | . . . . . . . . . . . . . . . . . . . . . . . . . . . . . High Security . | . . . . . . . . . . . . . . . . . . . . . . . . . . . . . Max Security . | . . . . . . . . . . . . . . . . . . . . . . . . . . . . . Peak Influence 1569 | . 117 318 135 . 81 13 449 189 . 928 1411 907 501 890 949 . . . . 1471 . . . . 840 552 1569 1449 Initial 928 | . . 31 95 . . 13 . 156 . . 447 753 339 161 420 . . . . 150 . . . . 6 466 306 928 Average 504 | . 42 200 73 . 29 1 167 109 . 364 789 822 456 421 454 . . . . 575 . . . . 531 441 837 1011 Influence Increases 17986 | . 292 645 227 . 191 . 1161 206 . 1552 1880 314 222 1032 1263 90 350 10 55 2341 5 185 146 160 1580 612 2037 1430 Destroy 0b10 Robot/C 8780 | . 160 400 180 . 160 . 560 20 . 760 1100 160 80 340 560 80 260 . 40 920 . 60 140 140 980 260 820 600 Destroy 0b10 Robot/NC 515 | . 25 30 . . . . 90 5 . 60 55 10 . 35 60 . . 10 5 30 5 5 . . 15 5 30 40 Destroy Leader 1836 | . 38 118 30 . 30 . 186 . . 172 132 . . 110 154 10 30 . 10 192 . . . 20 224 40 200 140 Allied During Kill 1149 | . . . . . . . 181 . . . 400 144 80 338 . . . . . . . . 6 . . . . . Successful Hack 135 | . 24 14 . . . . 4 31 . . 26 . . . . . . . . 4 . . . . . . . 32 Select Force Hacks 180 | . 30 . . . . . . 150 . . . . . . . . . . . . . . . . . . . . Disable Machine 1080 | . 15 30 . . . . 60 . . 195 45 . 60 . 120 . . . . 180 . . . . 15 165 90 105 Anti-Garrison Action 150 | . . . . . . . . . . . . . . 150 . . . . . . . . . . . . . . Destroy Structure 2346 | . . 8 2 . 1 . 5 . . 125 32 . 2 29 174 . . . . 430 . . . . 196 142 747 453 Advance Influence 150 | . . . . . . . . . . . . . . . . . . . . 150 . . . . . . . . Partial Spotted 30 | . . . . . . . . . . . . . . . . . . . . 15 . . . . . . 15 . Lose Combat Pursuer 1635 | . . 45 15 . . . 75 . . 240 90 . . 30 195 . 60 . . 420 . 120 . . 150 . 135 60 Influence Decreases 16630 | . 217 475 444 28 156 35 761 600 6 639 1446 812 610 634 1175 732 475 190 55 872 862 407 426 260 760 896 1036 1621 Entered New Map 5782 | . . 44 150 28 . 22 . 244 6 . 466 594 510 300 439 352 59 180 . . 544 117 390 110 4 364 240 619 Time Decay 8791 | . 217 431 294 . 136 13 534 356 . 509 510 198 60 214 656 380 416 10 55 622 318 270 36 150 666 452 656 632 Lost Part 1017 | . . . . . 20 . 27 . . 130 30 . . . 40 . . . . 220 . 20 . . 90 40 120 280 Lost Ally 740 | . . . . . . . 200 . . . 140 20 40 120 40 . . . . 30 . . . . . 40 20 90 Purge Threat 300 | . . . . . . . . . . . 300 . . . . . . . . . . . . . . . . . Squads Dispatched 112 | . 3 1 . . . . 4 . . 18 5 . . 8 13 . . . . 16 . . . . 7 5 18 14 Investigation 28 | . 1 1 . . . . 1 . . 7 2 . . 1 6 . . . . 6 . . . . 2 . 1 . Extermination 27 | . . . . . . . . . . 3 . . . 1 5 . . . . 4 . . . . . 2 6 6 Reinforcement 28 | . 2 . . . . . 1 . . 4 2 . . 3 1 . . . . 5 . . . . 2 2 3 3 Assault 19 | . . . . . . . 2 . . 1 1 . . 2 1 . . . . 1 . . . . . 1 5 5 Garrison 10 | . . . . . . . . . . 3 . . . 1 . . . . . . . . . . 3 . 3 . Intercept . | . . . . . . . . . . . . . . . . . . . . . . . . . . . . . Searches Triggered . | . . . . . . . . . . . . . . . . . . . . . . . . . . . . . Unchained Authorized 2 | . . . . . . . . . . . . . . . . . . . . . . . . . . . 1 1 Construction Impeded 6 | . . . . . . . . . . 2 2 . . 1 . . . . . . . . . . . . . 1 Haulers Reinforced 1 | . . . . . . . . . . . . . . . 1 . . . . . . . . . . . . . Active Scanning Responses . | . . . . . . . . . . . . . . . . . . . . . . . . . . . . . Cargo Convoy Interrupts 1 | . . . . . . . . . . 1 . . . . . . . . . . . . . . . . . . Stealth | -11 -10 -9 -9 -9 -8 -8 -8 -8 -8 -6 -6 -6 -6 -6 -5 -5 -5 -5 -4 -4 -4 -4 -4 -3 -3 -3 -2 -1 --------- Run | Yrd Mat Mat Min Exi Min Mat Sto Rec Scr Fac Ext Cet Arc Hub Fac Upp Upp Zhi Pro Fac Upp Upp War Pro Res Tes Res Acc Distress Signals 53 | . . 2 . . . . 7 . . 1 3 2 . 7 3 . . . . 8 . . 1 . 9 1 6 3 Communications Jammed 29 | . . . . . . . . . . . . . . . . . . . . . . . . . . 3 7 19 Distress Signals 28 | . . . . . . . . . . . . . . . . . . . . . . . . . . 3 7 18 Times Spotted 732 | . 15 26 9 . 13 . 39 1 . 68 64 9 3 21 49 4 17 . 10 88 . 13 16 7 73 20 73 94 Peak Tracking Total 17 | . 5 4 4 . 4 . 6 1 . 6 8 5 2 9 5 4 4 . 4 17 . 3 6 4 8 8 8 14 Tactical Retreats 56 | . . 3 1 . . . 1 . . 9 5 . . 2 5 . 2 . . 12 . 3 . . 3 . 6 4 Traps | -11 -10 -9 -9 -9 -8 -8 -8 -8 -8 -6 -6 -6 -6 -6 -5 -5 -5 -5 -4 -4 -4 -4 -4 -3 -3 -3 -2 -1 ------- Run | Yrd Mat Mat Min Exi Min Mat Sto Rec Scr Fac Ext Cet Arc Hub Fac Upp Upp Zhi Pro Fac Upp Upp War Pro Res Tes Res Acc Traps Triggered 19 | . 1 3 . . . 1 1 . . . . . . . 2 . . . . 3 . . 1 . . 2 3 2 Indirectly . | . . . . . . . . . . . . . . . . . . . . . . . . . . . . . Trap Hack Attempts . | . . . . . . . . . . . . . . . . . . . . . . . . . . . . . Triggered . | . . . . . . . . . . . . . . . . . . . . . . . . . . . . . Disarmed . | . . . . . . . . . . . . . . . . . . . . . . . . . . . . . Reprogrammed . | . . . . . . . . . . . . . . . . . . . . . . . . . . . . . Reused 2 | . . . . . . . . . . . . . . . . . . . . . . 2 . . . . . . Traps Extracted . | . . . . . . . . . . . . . . . . . . . . . . . . . . . . . Installed 4 | . . . . . . . . . . . . . . . . . . . . . . 4 . . . . . . Triggered 2 | . . . . . . . . . . . . . . . . . . . . . . 2 . . . . . . Most Traps Carried 6 | . . . . . . . . . . . . . . . . . . . . . 6 6 2 . . . . . Machines | -11 -10 -9 -9 -9 -8 -8 -8 -8 -8 -6 -6 -6 -6 -6 -5 -5 -5 -5 -4 -4 -4 -4 -4 -3 -3 -3 -2 -1 ---------- Run | Yrd Mat Mat Min Exi Min Mat Sto Rec Scr Fac Ext Cet Arc Hub Fac Upp Upp Zhi Pro Fac Upp Upp War Pro Res Tes Res Acc Machines Disabled 77 | . 1 2 . . . . 4 . . 13 4 . 4 1 8 . . . . 12 . . 2 . 1 12 6 7 Max in Single Turn 5 | . 1 1 . . . . 1 . . 5 1 . . . 2 . . . . 3 . . 1 . 1 1 1 1 Garrison Access 3 | . . . . . . . . . . 1 . . . 1 . . . . . . . . . . 1 . . . Energy Cycler 1 | . . . . . . . . . . . 1 . . . . . . . . . . . . . . . . . Machines Repaired . | . . . . . . . . . . . . . . . . . . . . . . . . . . . . . Machines Dismantled . | . . . . . . . . . . . . . . . . . . . . . . . . . . . . . Machines Sabotaged . | . . . . . . . . . . . . . . . . . . . . . . . . . . . . . Overloaded Fab Kills . | . . . . . . . . . . . . . . . . . . . . . . . . . . . . . Hacking | -11 -10 -9 -9 -9 -8 -8 -8 -8 -8 -6 -6 -6 -6 -6 -5 -5 -5 -5 -4 -4 -4 -4 -4 -3 -3 -3 -2 -1 --------- Run | Yrd Mat Mat Min Exi Min Mat Sto Rec Scr Fac Ext Cet Arc Hub Fac Upp Upp Zhi Pro Fac Upp Upp War Pro Res Tes Res Acc Machines Accessed 78 | . 5 3 . . . . 7 11 1 8 6 . . 2 10 2 . 4 . 9 . . 3 . 2 3 1 1 Terminals 37 | . 4 2 . . . . 7 6 . 2 5 . . 2 3 1 . . . 2 . . . . . 2 . 1 Fabricators . | . . . . . . . . . . . . . . . . . . . . . . . . . . . . . Repair Stations 4 | . . 1 . . . . . . . . . . . . 2 . . . . 1 . . . . . . . . Recycling Units 24 | . 1 . . . . . . 5 . 4 1 . . . 5 . . . . 6 . . . . 1 . 1 . Scanalyzers . | . . . . . . . . . . . . . . . . . . . . . . . . . . . . . Garrison Access 4 | . . . . . . . . . . 2 . . . . . . . . . . . . . . 1 1 . . Total Hacks 172 | . 13 5 . . . . 15 22 8 16 11 . . 3 23 2 . 17 . 15 . . 8 . 3 4 3 4 Successful 96 | . 6 5 . . . . 6 16 8 4 6 . . 1 5 2 . 17 . 9 . . 8 . 1 . . 2 Failed 76 | . 7 . . . . . 9 6 . 12 5 . . 2 18 . . . . 6 . . . . 2 4 3 2 Catastrophic 14 | . . . . . . . 2 1 . 2 2 . . . 3 . . . . . . . . . 1 2 1 . Database Lockouts . | . . . . . . . . . . . . . . . . . . . . . . . . . . . . . Manual 81 | . 5 2 . 4 . . 1 21 . 9 2 1 . 3 15 . . . . 13 . . . . 2 . 3 . Terminals 79 | . 12 3 . . . . 15 15 . 4 10 . . 3 4 1 . . . 5 . . . . . 3 . 4 Fabricators . | . . . . . . . . . . . . . . . . . . . . . . . . . . . . . Repair Stations 10 | . . 2 . . . . . . . . . . . . 6 . . . . 2 . . . . . . . . Recycling Units 41 | . 1 . . . . . . 7 . 6 1 . . . 13 . . . . 8 . . . . 2 . 3 . Scanalyzers . | . . . . . . . . . . . . . . . . . . . . . . . . . . . . . Garrison Access 8 | . . . . . . . . . . 6 . . . . . . . . . . . . . . 1 1 . . Terminal Hacks 53 | . 3 1 . . . . 6 1 8 . 5 . . . . 2 . 17 . . . . 8 . . . . 2 Record 9 | . . . . . . . . . . . . . . . . 2 . 5 . . . . 2 . . . . . Part Schematic 4 | . . . . . . . . . . . . . . . . . . 4 . . . . . . . . . . Robot Analysis 12 | . . . . . . . . . 8 . . . . . . . . 4 . . . . . . . . . . Prototype ID Bank 9 | . . . . . . . . . . . . . . . . . . 4 . . . . 5 . . . . . Open Door 6 | . . . . . . . 4 . . . 1 . . . . . . . . . . . 1 . . . . . Level Access Points 1 | . . . . . . . . . . . . . . . . . . . . . . . . . . . . 1 Branch Access Points 1 | . . 1 . . . . . . . . . . . . . . . . . . . . . . . . . . Unreport Threat 2 | . . . . . . . . . . . 2 . . . . . . . . . . . . . . . . . Dispatch Records 1 | . . . . . . . 1 . . . . . . . . . . . . . . . . . . . . . Maintenance Status 1 | . . . . . . . . . . . 1 . . . . . . . . . . . . . . . . . Security Status 1 | . 1 . . . . . . . . . . . . . . . . . . . . . . . . . . . Patrol Status 1 | . 1 . . . . . . . . . . . . . . . . . . . . . . . . . . . Zone Layout 5 | . 1 . . . . . 1 1 . . 1 . . . . . . . . . . . . . . . . 1 Fabricator Hacks . | . . . . . . . . . . . . . . . . . . . . . . . . . . . . . Repair Station Hacks 6 | . . 2 . . . . . . . . . . . . 2 . . . . 2 . . . . . . . . Scan Component 4 | . . 1 . . . . . . . . . . . . 2 . . . . 1 . . . . . . . . Repair 2 | . . 1 . . . . . . . . . . . . . . . . . 1 . . . . . . . . Recycling Unit Hacks . | . . . . . . . . . . . . . . . . . . . . . . . . . . . . . Scanalyzer . | . . . . . . . . . . . . . . . . . . . . . . . . . . . . . Garrison Access Hacks 2 | . . . . . . . . . . 1 . . . . . . . . . . . . . . 1 . . . Seal Access 2 | . . . . . . . . . . 1 . . . . . . . . . . . . . . 1 . . . Unauthorized Hacks 35 | . 3 2 . . . . . 15 . 3 1 . . 1 3 . . . . 7 . . . . . . . . Terminals 17 | . 2 2 . . . . . 10 . . . . . 1 . . . . . 2 . . . . . . . . Botnet 9 | . 2 1 . . . . . 4 . . . . . . . . . . . 2 . . . . . . . . Skim 7 | . . 1 . . . . . 6 . . . . . . . . . . . . . . . . . . . . Sabotage 1 | . . . . . . . . . . . . . . 1 . . . . . . . . . . . . . . Fabricators . | . . . . . . . . . . . . . . . . . . . . . . . . . . . . . Repair Stations . | . . . . . . . . . . . . . . . . . . . . . . . . . . . . . Recycling Units 18 | . 1 . . . . . . 5 . 3 1 . . . 3 . . . . 5 . . . . . . . . Tunnel 6 | . 1 . . . . . . 5 . . . . . . . . . . . . . . . . . . . . Fedlink 12 | . . . . . . . . . . 3 1 . . . 3 . . . . 5 . . . . . . . . Scanalyzers . | . . . . . . . . . . . . . . . . . . . . . . . . . . . . . Garrison Access . | . . . . . . . . . . . . . . . . . . . . . . . . . . . . . Data Cores Recovered 1 | . . . . . . . . . . . . . . . . . . . . . . . . . . . 1 . Used . | . . . . . . . . . . . . . . . . . . . . . . . . . . . . . Hacking Detections 44 | . 4 . . . . . 4 5 . 5 5 1 . 1 9 1 . . . 3 . . . . 1 3 1 1 Full Trace Events 10 | . . . . . . . 1 1 . 2 1 . . . 2 . . . . 1 . . . . 1 . 1 . Feedback Events 1 | . . . . . . . 1 . . . . . . . . . . . . . . . . . . . . . Corruption 1 | . . . . . . . 1 . . . . . . . . . . . . . . . . . . . . . Feedback Blocked . | . . . . . . . . . . . . . . . . . . . . . . . . . . . . . Robot Schematics Acquired . | . . . . . . . . . . . . . . . . . . . . . . . . . . . . . Robots Built . | . . . . . . . . . . . . . . . . . . . . . . . . . . . . . Authchips . | . . . . . . . . . . . . . . . . . . . . . . . . . . . . . Time . | . . . . . . . . . . . . . . . . . . . . . . . . . . . . . Total Robot Build Rating . | . . . . . . . . . . . . . . . . . . . . . . . . . . . . . Part Schematics Acquired 4 | . . . . . . . . . . . . . . . . . . 4 . . . . . . . . . . Parts Built . | . . . . . . . . . . . . . . . . . . . . . . . . . . . . . Authchips . | . . . . . . . . . . . . . . . . . . . . . . . . . . . . . Time . | . . . . . . . . . . . . . . . . . . . . . . . . . . . . . Total Part Build Rating . | . . . . . . . . . . . . . . . . . . . . . . . . . . . . . Part Studies Acquired . | . . . . . . . . . . . . . . . . . . . . . . . . . . . . . Parts Repaired 2 | . . 1 . . . . . . . . . . . . . . . . . 1 . . . . . . . . Time 82 | . . 32 . . . . . . . . . . . . . . . . . 50 . . . . . . . . Parts Recycled . | . . . . . . . . . . . . . . . . . . . . . . . . . . . . . Recycled Matter . | . . . . . . . . . . . . . . . . . . . . . . . . . . . . . Retrieved Matter . | . . . . . . . . . . . . . . . . . . . . . . . . . . . . . Retrieved Components . | . . . . . . . . . . . . . . . . . . . . . . . . . . . . . Parts Scanalyzed . | . . . . . . . . . . . . . . . . . . . . . . . . . . . . . Part Schematics Acquired . | . . . . . . . . . . . . . . . . . . . . . . . . . . . . . Parts Damaged . | . . . . . . . . . . . . . . . . . . . . . . . . . . . . . Bothacking | -11 -10 -9 -9 -9 -8 -8 -8 -8 -8 -6 -6 -6 -6 -6 -5 -5 -5 -5 -4 -4 -4 -4 -4 -3 -3 -3 -2 -1 ------------ Run | Yrd Mat Mat Min Exi Min Mat Sto Rec Scr Fac Ext Cet Arc Hub Fac Upp Upp Zhi Pro Fac Upp Upp War Pro Res Tes Res Acc Used RIF Installer . | . . . . . . . . . . . . . . . . . . . . . . . . . . . . . Robots Hacked . | . . . . . . . . . . . . . . . . . . . . . . . . . . . . . Non-combat . | . . . . . . . . . . . . . . . . . . . . . . . . . . . . . Combat . | . . . . . . . . . . . . . . . . . . . . . . . . . . . . . Robot Hacks Applied . | . . . . . . . . . . . . . . . . . . . . . . . . . . . . . Relay Couplers Released 1 | . . . . . . . . . . . . . . 1 . . . . . . . . . . . . . . Machine Destruction 1 | . . . . . . . . . . . . . . 1 . . . . . . . . . . . . . . Fabnet Peak Effective % . | . . . . . . . . . . . . . . . . . . . . . . . . . . . . . Robots Rewired 23 | . . . . . . . . . . . 16 . . . . . . . . . . . 5 . . 1 1 . Allies Hacked . | . . . . . . . . . . . . . . . . . . . . . . . . . . . . . Hacks Repelled . | . . . . . . . . . . . . . . . . . . . . . . . . . . . . . Allies | -11 -10 -9 -9 -9 -8 -8 -8 -8 -8 -6 -6 -6 -6 -6 -5 -5 -5 -5 -4 -4 -4 -4 -4 -3 -3 -3 -2 -1 -------- Run | Yrd Mat Mat Min Exi Min Mat Sto Rec Scr Fac Ext Cet Arc Hub Fac Upp Upp Zhi Pro Fac Upp Upp War Pro Res Tes Res Acc Total Allies 42 | . . . . . . . 12 . . . 18 5 . . . . . . . . . . 5 . . 1 1 . Largest Group 12 | . . . . . . . 11 . . . 9 12 11 8 . . . . . . . . 5 . . 1 1 . Highest-Rated Group 800 | . . . . . . . 219 . . . 381 800 647 488 . . . . . . . . 291 . . 47 42 . Highest-Rated Ally 159 | . . . . . . . 31 . . . 159 149 96 96 . . . . . . . . 68 . . 47 42 . Total Orders 14 | . . . . . . . . . . . . . . 2 5 . . . . 1 . . 2 . . 1 1 2 STAY 4 | . . . . . . . . . . . . . . 1 . . . . . . . . 2 . . . 1 . FOLLOW 1 | . . . . . . . . . . . . . . 1 . . . . . . . . . . . . . . EXPLORE 9 | . . . . . . . . . . . . . . . 5 . . . . 1 . . . . . 1 . 2 Ally Attacks 333 | . . . . . . . 104 . . . 89 17 22 99 . . . . . . . . . . . 1 1 . Total Damage 9161 | . . . . . . . 1260 . . . 2820 347 569 4113 . . . . . . . . . . . 16 36 . Kills 65 | . . . . . . . 15 . . . 18 5 4 23 . . . . . . . . . . . . . . Allies Corrupted 4 | . . . . . . . 1 . . . . . . 1 1 . . . . . . . . . . 1 . . Allies Melted 1 | . . . . . . . . . . . . . . 1 . . . . . . . . . . . . . . Intel | -11 -10 -9 -9 -9 -8 -8 -8 -8 -8 -6 -6 -6 -6 -6 -5 -5 -5 -5 -4 -4 -4 -4 -4 -3 -3 -3 -2 -1 ------- Run | Yrd Mat Mat Min Exi Min Mat Sto Rec Scr Fac Ext Cet Arc Hub Fac Upp Upp Zhi Pro Fac Upp Upp War Pro Res Tes Res Acc Active Infowar (turns) 17118 | . 616 190 . . . . . . . . . . . . 2222 888 1165 . 741 1522 719 159 693 . 2429 1126 2444 2204 Optics 6417 | . . . . . . . . . . . . . . . . . . . . . . . . . 2016 . 2197 2204 Sensors 12048 | . . . . . . . . . . . . . . . 2222 888 1165 . 741 1522 719 159 . . 413 484 1645 2090 Terrain 693 | . . . . . . . . . . . . . . . . . . . . . . . 693 . . . . . Seismic 1601 | . 616 190 . . . . . . . . . . . . . . . . . . . . . . . . 795 . Machine Analysis 598 | . . . . . . . . . . . . . . . . . . . . . . . . . . . 598 . Cloaking 1990 | . . . . . . . . . . . . . . . . . . . . . . . 9 . 1098 879 4 . Jamming 4262 | . . . . . . . . . . . . . . . . . . . . . . . . . 68 1126 1029 2039 ECM 1 | . . . . . . . . . . . . . . . . . . . . . . . . . 1 . . . Robot Analysis Total 12 | . . . . . . . . . 8 . . . . . . . . 4 . . . . . . . . . . Derelict Logs Recovered 7 | . . . 2 . . . . . . . . . . . . 2 1 . 1 . 1 . . . . . . . Drone Launches 24 | . . . . . . . . . . . . . . . 7 . . . . 3 . . . . . 2 . 12 Drone Recoveries 5 | . . . . . . . . . . . . . . . 2 . . . . . . . . . . . . 3 Exploration | -11 -10 -9 -9 -9 -8 -8 -8 -8 -8 -6 -6 -6 -6 -6 -5 -5 -5 -5 -4 -4 -4 -4 -4 -3 -3 -3 -2 -1 ------------- Run | Yrd Mat Mat Min Exi Min Mat Sto Rec Scr Fac Ext Cet Arc Hub Fac Upp Upp Zhi Pro Fac Upp Upp War Pro Res Tes Res Acc Turns Passed 31332 | 3 630 1331 643 372 426 181 1740 811 1374 1957 1382 414 132 452 2440 888 1184 335 874 2118 719 584 1481 394 2683 1126 2444 2214 Spaces Moved 20064 | 3 327 690 359 233 223 113 1016 600 1054 1096 713 204 64 290 1429 714 876 257 710 1222 449 379 1152 320 1946 795 1521 1309 Core 22 | . . . . . . . . . . . . . . . . . . . . . . . . . . . . 22 Treads 2392 | . 207 690 359 233 223 113 567 . . . . . . . . . . . . . . . . . . . . . Legs 17602 | 3 120 . . . . . 401 600 1054 1096 713 204 64 290 1429 714 876 257 710 1222 449 379 1152 320 1946 795 1521 1287 Wheels 48 | . . . . . . . 48 . . . . . . . . . . . . . . . . . . . . . Hover . | . . . . . . . . . . . . . . . . . . . . . . . . . . . . . Flight . | . . . . . . . . . . . . . . . . . . . . . . . . . . . . . Fastest Speed 50 | 120 120 160 160 160 160 160 95 130 130 123 122 122 122 120 120 120 120 117 117 100 120 120 105 105 105 102 102 50 Average Speed 122 | 120 145 160 160 160 160 160 138 130 130 125 124 122 122 120 120 120 120 117 117 115 120 120 109 105 109 102 111 116 Slowest Speed 240 | 120 160 160 160 160 160 160 240 130 130 195 130 125 125 122 120 120 120 120 117 120 120 120 120 105 115 105 120 183 Overloaded Moves . | . . . . . . . . . . . . . . . . . . . . . . . . . . . . . Propulsion Burnouts . | . . . . . . . . . . . . . . . . . . . . . . . . . . . . . Robots Hopped . | . . . . . . . . . . . . . . . . . . . . . . . . . . . . . Potential Cave-ins 3 | . . . . . . . . . . . . . . . . . . . . 3 . . . . . . . . Cave-ins Triggered . | . . . . . . . . . . . . . . . . . . . . . . . . . . . . . Teleports 1 | . . . . . . . . . . . . . . . . . . . . . . . . . 1 . . . Exploration Rate (%) 57 | 2 64 59 66 62 57 15 79 92 83 28 76 65 68 30 43 81 82 60 70 34 47 49 87 55 51 88 40 34 Regions Visited 28 Branch Regions 19 Pre-discovered Areas 17 | . 1 . 2 . . . 1 8 . 1 . . . . . 1 . 3 . . . . . . . . . . Known Exits Taken 16 | . . 1 . . . 1 . 1 1 . . . . . 1 1 1 1 1 1 1 1 1 1 . 1 1 . Unknown Exits Taken 12 | 1 1 . 1 1 1 . 1 . . 1 1 1 1 1 . . . . . . . . . . 1 . . . Scrap Searched 17 | . . . . . 1 . . . 5 . . . . . . 4 2 . 1 . 1 . . 3 . . . . Spaces Dug 225 | . . . . . . . . . . 19 . . . 3 24 2 3 . . 19 7 1 1 19 10 52 32 33 Terrain Destroyed 1495 | . . 4 2 . 1 . . . . 124 19 . 2 3 160 11 39 . 13 301 8 17 8 95 125 102 290 171 Melee 53 | . . . . . . . . . . 15 . . . 3 7 . . . . 19 7 1 1 . . . . . Projectile 661 | . . 4 2 . 1 . . . . 16 11 . . . 92 11 39 . 13 114 1 . 7 5 30 64 148 103 AOE 774 | . . . . . . . . . . 93 7 . . . 57 . . . . 168 . 16 . 90 95 38 142 68 Terrain Rammed . | . . . . . . . . . . . . . . . . . . . . . . . . . . . . . Walls Destroyed . | . . . . . . . . . . . . . . . . . . . . . . . . . . . . . Machines Disabled . | . . . . . . . . . . . . . . . . . . . . . . . . . . . . . Actions | -11 -10 -9 -9 -9 -8 -8 -8 -8 -8 -6 -6 -6 -6 -6 -5 -5 -5 -5 -4 -4 -4 -4 -4 -3 -3 -3 -2 -1 --------- Run | Yrd Mat Mat Min Exi Min Mat Sto Rec Scr Fac Ext Cet Arc Hub Fac Upp Upp Zhi Pro Fac Upp Upp War Pro Res Tes Res Acc Total 24538 | 2 395 815 392 232 249 114 1213 626 1059 1455 1059 343 97 343 1916 730 970 281 744 1741 613 486 1318 347 2305 997 1957 1739 Wait 1755 | . 12 43 8 . 1 . 18 1 1 116 57 98 14 13 279 4 64 . 17 311 143 74 65 2 53 34 132 195 Move 20035 | 2 327 689 358 232 222 112 1015 599 1053 1095 712 203 63 289 1427 713 875 256 709 1221 448 378 1151 319 1945 794 1520 1308 Hop . | . . . . . . . . . . . . . . . . . . . . . . . . . . . . . Pick Up 173 | . . 9 1 . 2 . 16 . 2 19 12 10 2 . 8 . 2 3 1 9 6 . 9 2 28 14 11 7 Fast Attach 137 | . 1 5 1 . 1 . 9 . . 11 4 2 . 2 8 2 . 4 . 10 . 8 4 . 10 9 27 19 Attach 87 | . . . . . 1 . 2 . . 10 . . . . 6 1 . 1 . 11 3 2 7 . 10 10 8 15 Detach 41 | . . 2 . . . . 1 . . 3 . . . . 1 1 . . . 2 1 1 5 . 3 3 10 8 Swap 380 | . 7 6 2 . 1 1 30 . 1 31 33 3 6 9 34 1 4 5 5 45 . . 18 7 70 26 22 13 Drop 282 | . . 12 4 . 1 1 28 . 2 17 17 13 4 4 19 . 3 8 4 18 . 4 6 3 49 27 27 11 Fire 1253 | . 48 47 16 . 19 . 86 4 . 114 76 14 8 16 110 8 22 . 6 86 3 9 16 14 135 71 188 137 Melee 109 | . . . . . . . . . . 35 . . . 4 8 . . 4 . 19 9 6 10 . . 1 . 13 Ram 5 | . . . . . . . 4 . . . . . . . . . . . . . . . . . . . 1 . Kick 55 | . . . . . . . . 1 . 4 4 . . 6 5 . . . 1 9 . . . . 2 7 3 13 Crush 9 | . . 2 2 . 1 . 4 . . . . . . . . . . . . . . . . . . . . . Escape Stasis 11 | . . . . . . . . . . . . . . . 11 . . . . . . . . . . . . . Rewire 201 | . . . . . . . . 21 . . 144 . . . . . . . . . . . 27 . . 1 8 . Trap 4 | . . . . . . . . . . . . . . . . . . . . . . 4 . . . . . . Miscellaneous 1 | . . . . . . . . . . . . . . . . . . . 1 . . . . . . . . . Route ------- -11/Scrapyard -10/Materials (discovered 3 exits: *Mat x2 / [*Min]) -9/Materials (discovered 3 exits: [*Mat] / *Min x2) -9/Mines (discovered 2 exits: [*Mat] / *Exi) -9/Exiles -8/Mines (discovered 2 exits: [*Mat x2]) -8/Materials (discovered 2 exits: *Sto x2) -8/Storage -8/Recycling (discovered 2 exits: *Fac / *Scr) -8/Scraptown (discovered 2 exits: *Fac x2) -6/Factory (discovered 2 exits: [*Low] / *Ext) -6/Extension (discovered 3 exits: *Fac x2 / *Cet) -6/Cetus (discovered 2 exits: *Fac / [*Arc]) -6/Archives -6/Hub_04(d) -5/Factory (discovered 3 exits: *Fac / *Upp x2) -5/Upper Caves -5/Upper Caves (discovered 2 exits: *Fac / *Zhi) -5/Zhirov -4/Proximity Caves -4/Factory (discovered 4 exits: *Res x2 / *Upp x2) -4/Upper Caves -4/Upper Caves -4/Warlord -3/Proximity Caves -3/Research (discovered 4 exits: *Res x2 / *Tes x2) -3/Testing -2/Research (discovered 3 exits: *Acc x3) -1/Access To Epsilon Eridani History --------- Turn | Location | Event 1 | -11/Scrapyard | Discovered new exit (range 2) 4 | -11/Scrapyard | Entered Materials 263 | -10/Materials | Discovered new exit (range 5) 306 | -10/Materials | Build established: Mutant 353 | -10/Materials | Discovered new exit (range 5) 603 | -10/Materials | Discovered new exit (range 8) 634 | -10/Materials | Entered another Materials area 634 | -9/Materials | Evolved 2 slots: Utility x1, Weapon x1 1123 | -9/Materials | Build established: Tank 1264 | -9/Materials | Discovered new exit (range 10) 1351 | -9/Materials | Identified exit to Mines 1547 | -9/Materials | Repaired Hrd. Light Armor Plating 1606 | -9/Materials | Discovered new exit (range 10) 1965 | -9/Materials | Entered Mines 2248 | -9/Mines | Discovered new exit (range 11) 2455 | -9/Mines | Deemed a non-threat by the Exiles lab entrance 2455 | -9/Mines | Discovered new exit (range 5) 2608 | -9/Mines | Entered Exiles 2652 | -9/Exiles | Met 8R-AWN 2666 | -9/Exiles | Build established: Gunner 2676 | -9/Exiles | Met EX-HEX 2725 | -9/Exiles | Met EX-BIN 2893 | -9/Exiles | Met EX-DEC 2962 | -9/Exiles | Discovered new exit (range 14) 2980 | -9/Exiles | Entered Mines 3059 | -8/Mines | Discovered new exit (range 12) 3293 | -8/Mines | Core integrity fell below 50% 3390 | -8/Mines | Discovered new exit (range 10) 3406 | -8/Mines | Entered Materials 3406 | -8/Materials | Evolved 2 slots: Propulsion x1, Utility x1 3407 | -8/Materials | Identified exit to Storage 3482 | -8/Materials | Discovered exit to Storage (range 15) 3587 | -8/Materials | Entered Storage 4271 | -8/Storage | Learned location of Armory (-4) 4697 | -8/Storage | Assisted by bots powering up and referring to "LRC-V3" 4936 | -8/Storage | Discovered new exit (range 9) 4986 | -8/Storage | Build established: Commander-Gunner 5028 | -8/Storage | Met a pair of Derelict thieves 5246 | -8/Storage | Lost 11 allies 5322 | -8/Storage | Used back door to open Recycling access 5327 | -8/Storage | Entered Recycling 5487 | -8/Recycling | Build established: Gunner 5710 | -8/Recycling | Learned Storage security intel 5774 | -8/Recycling | Identified exit to Scraptown 5774 | -8/Recycling | Identified exit to Factory 5877 | -8/Recycling | Learned Factory garrison access intel 5942 | -8/Recycling | Learned Storage emergency access door positions 5984 | -8/Recycling | Learned Factory trap positions 6021 | -8/Recycling | Learned location of Zion (-7) 6108 | -8/Recycling | Scanned before Scraplab entrance 6126 | -8/Recycling | Entered Scraplab 6138 | -8/Recycling | Entered Scraptown 6138 | -8/Scraptown | System corruption cleaned by C-Scrubber 6164 | -8/Scraptown | Heard Great Nut preacher, LISTEN AND RECITE! 6435 | -8/Scraptown | Discovered exit to Factory (range 9) 6532 | -8/Scraptown | Visited Assassins FH 6542 | -8/Scraptown | Visited Fellowship of the Rings 6550 | -8/Scraptown | Visited SPCMW 6559 | -8/Scraptown | Visited Spacefarers 6716 | -8/Scraptown | Visited Comm Corps 6756 | -8/Scraptown | Visited The Evicted 6766 | -8/Scraptown | Visited Awakened 6786 | -8/Scraptown | Visited UFD Registry 6786 | -8/Scraptown | Registered with UFD as "Dualunit" 6814 | -8/Scraptown | Visited Abandonware Association 6835 | -8/Scraptown | Visited Curators Association 6911 | -8/Scraptown | Visited Analyses Database 6938 | -8/Scraptown | Visited Scrapoid Pod Storage 6963 | -8/Scraptown | Visited Derelict Rescue Squad 7260 | -8/Scraptown | Found DRS Beacon 7289 | -8/Scraptown | Visited Research Penetration Think Tank 7320 | -8/Scraptown | Visited Scrapoid Research Area 7446 | -8/Scraptown | Met Optimus 7446 | -8/Scraptown | Accepted into 0bPrime 7507 | -8/Scraptown | Discovered exit to Factory (range 5) 7512 | -8/Scraptown | Entered Factory 7512 | -6/Factory | Evolved 4 slots: Propulsion x1, Utility x2, Weapon x1 7513 | -6/Factory | Loaded intel: 102 trap records 7514 | -6/Factory | Loaded intel: 4 garrison access locations 7628 | -6/Factory | Loaded intel: 8 recycling unit locations 7820 | -6/Factory | Build established: Tank 7893 | -6/Factory | Learned location of Protoforge (-2) 7920 | -6/Factory | Discovered new exit (range 7) 8069 | -6/Factory | Garrison activated, responded to threat 8396 | -6/Factory | Cargo convoy interrupted 8570 | -6/Factory | Build established: Scavenger-Gunner 8778 | -6/Factory | Lost 7 parts (2n2u3w) 9062 | -6/Factory | Build established: Gunner 9262 | -6/Factory | First assault squad dispatched 9412 | -6/Factory | Discovered new exit (range 16) 9469 | -6/Factory | Entered Extension 9583 | -6/Extension | Rescued a captive Derelict 9833 | -6/Extension | Energy Cycler disabled 9833 | -6/Extension | Rescued a captive Derelict 9835 | -6/Extension | Rescued a captive Derelict 9875 | -6/Extension | Rescued A7 10156 | -6/Extension | Build established: Commander-Gunner 10223 | -6/Extension | Spotted B-75 Beast 10236 | -6/Extension | Core integrity fell below 50% 10245 | -6/Extension | Destroyed B-75 Beast 10269 | -6/Extension | Disrupted transfer network 10279 | -6/Extension | Spotted B-75 Beast 10283 | -6/Extension | Lost 5 allies 10283 | -6/Extension | Destroyed B-75 Beast 10297 | -6/Extension | Discovered new exit (range 15) 10311 | -6/Extension | Destroyed 10 combat bots 10475 | -6/Extension | Loaded intel: 1 recycling unit location 10519 | -6/Extension | First assault squad dispatched 10522 | -6/Extension | Build established: Scavenger-Gunner 10807 | -6/Extension | Discovered new exit (range 10) 10809 | -6/Extension | Discovered new exit (range 6) 10828 | -6/Extension | Disrupted transfer network 10851 | -6/Extension | Entered Cetus 10851 | -6/Cetus | Accompanied by 8 allies (A7) 10856 | -6/Cetus | Acquired a Cetus Manufacturing Module code from A7 10867 | -6/Cetus | Spotted Cetus Guard 10867 | -6/Cetus | Spotted Cetus Guard 10867 | -6/Cetus | Destroyed Cetus Guard 10870 | -6/Cetus | Spotted Cetus Guard 10870 | -6/Cetus | Destroyed Cetus Guard 10871 | -6/Cetus | Spotted Cetus Guard 10873 | -6/Cetus | Destroyed Cetus Guard 10879 | -6/Cetus | Destroyed Cetus Guard 10953 | -6/Cetus | Started Cetus Manufacturing Module 10978 | -6/Cetus | Manufactured an Enhanced Grunt 11003 | -6/Cetus | Manufactured an Enhanced Grunt 11028 | -6/Cetus | Manufactured an Enhanced Grunt 11053 | -6/Cetus | Manufactured an Enhanced Grunt 11078 | -6/Cetus | Manufactured an Enhanced Grunt 11108 | -6/Cetus | Discovered new exit (range 15) 11133 | -6/Cetus | Spotted Cetus Guard 11134 | -6/Cetus | Spotted Cetus Guard 11140 | -6/Cetus | Allies destroyed Cetus Guard 11140 | -6/Cetus | Spotted Cetus Guard 11141 | -6/Cetus | Allies destroyed Cetus Guard 11141 | -6/Cetus | Destroyed Cetus Guard 11156 | -6/Cetus | Discovered new exit (range 16) 11164 | -6/Cetus | Met Revision 17 11248 | -6/Cetus | Murdered A7 11253 | -6/Cetus | Extracted ID and sensor layout for unrecognized location from A7's data core 11263 | -6/Cetus | Build established: Commander-Gunner 11265 | -6/Cetus | Entered Archives 11265 | -6/Archives | Accompanied by 11 allies 11314 | -6/Archives | Found Prototype Device 11314 | -6/Archives | Identified Exp. Thermal Shield 11332 | -6/Archives | Lost 3 allies 11341 | -6/Archives | Discovered new exit (range 15) 11397 | -6/Archives | Entered Hub_04(d) 11397 | -6/Hub_04(d) | Accompanied by 8 allies 11440 | -6/Hub_04(d) | Discovered new exit (range 15) 11708 | -6/Hub_04(d) | Spotted B-75 Beast 11819 | -6/Hub_04(d) | Build established: Scavenger-Gunner 11839 | -6/Hub_04(d) | Lost 7 allies 11849 | -6/Hub_04(d) | Entered Factory 11849 | -5/Factory | Evolved 2 slots: Utility x2 11885 | -5/Factory | Discovered new exit (range 12) 12106 | -5/Factory | Discovered new exit (range 49) 12275 | -5/Factory | Build established: Scavenger-Tank 12327 | -5/Factory | Identified exit to Upper Caves 12790 | -5/Factory | Discovered new exit (range 15) 12901 | -5/Factory | Loaded intel: 8 recycling unit locations 13649 | -5/Factory | First assault squad dispatched 14088 | -5/Factory | System corruption reached 10% 14289 | -5/Factory | Entered Upper Caves 14448 | -5/Upper Caves | Found Alien Artifact 14448 | -5/Upper Caves | Identified Core Expander 14448 | -5/Upper Caves | Installed Core Expander, added new Power slot 14668 | -5/Upper Caves | Learned location of 1 exit from Factory 14678 | -5/Upper Caves | Discovered new exit (range 12) 14733 | -5/Upper Caves | Entered a destroyed Warlord outpost 14914 | -5/Upper Caves | Identified exit to Upper Caves 15177 | -5/Upper Caves | Entered another Upper Caves area 15209 | -5/Upper Caves | Discovered new exit (range 14) 16321 | -5/Upper Caves | Discovered new exit (range 12) 16326 | -5/Upper Caves | Attracted the attention of an 0b10 checkpoint 16360 | -5/Upper Caves | Identified exit to Zhirov 16361 | -5/Upper Caves | Entered Zhirov 16364 | -5/Zhirov | Discovered new exit (range 3) 16385 | -5/Zhirov | Met Zhirov 16411 | -5/Zhirov | Learned location of Quarantine (-2) 16411 | -5/Zhirov | Learned location of Testing (-3) 16411 | -5/Zhirov | Learned location of Command (-1) 16417 | -5/Zhirov | Zhirov requested help retrieving the SGEMP Prototype 16488 | -5/Zhirov | Found Alien Artifact 16488 | -5/Zhirov | Identified Integrated Reactor 16488 | -5/Zhirov | Installed Integrated Reactor, increased core energy generation (+10) 16505 | -5/Zhirov | Found Alien Artifact 16573 | -5/Zhirov | Identified exit to Proximity Caves 16696 | -5/Zhirov | Entered Proximity Caves 16704 | -4/Proximity Caves | Activated DRS Beacon 16715 | -4/Proximity Caves | Learned Research emergency access door positions 16880 | -4/Proximity Caves | Spotter reported a threat 17523 | -4/Proximity Caves | Discovered new exit (range 12) 17569 | -4/Proximity Caves | Identified exit to Factory 17570 | -4/Proximity Caves | Entered Factory 17570 | -4/Factory | Evolved 2 slots: Utility x2 17571 | -4/Factory | Identified exit to Upper Caves 17572 | -4/Factory | Identified exit to Research 18016 | -4/Factory | Loaded intel: 8 recycling unit locations 18434 | -4/Factory | Repaired Adv. Sensor Array 18524 | -4/Factory | Discovered exit to Research (range 4) 19061 | -4/Factory | Build established: Scavenger-Gunner 19320 | -4/Factory | First assault squad dispatched 19334 | -4/Factory | Discovered exit to Upper Caves (range 4) 19537 | -4/Factory | Destroyed 8 combat bots 19551 | -4/Factory | Lost 6 parts (1p1n2u2w) 19669 | -4/Factory | Core integrity fell below 50% 19688 | -4/Factory | Entered Upper Caves 19689 | -4/Upper Caves | Lost 12 parts (1p4n4u3w) 19697 | -4/Upper Caves | Learned 4 Research zone layouts 19918 | -4/Upper Caves | Build established: Mutant 20394 | -4/Upper Caves | Discovered new exit (range 3) 20396 | -4/Upper Caves | Identified exit to Upper Caves 20407 | -4/Upper Caves | Entered another Upper Caves area 20541 | -4/Upper Caves | Encountered a Warlord checkpoint 20574 | -4/Upper Caves | System corruption reached 10% 20714 | -4/Upper Caves | Attracted the attention of an 0b10 checkpoint 20925 | -4/Upper Caves | Discovered new exit (range 15) 20989 | -4/Upper Caves | Identified exit to Warlord 20991 | -4/Upper Caves | Entered Warlord 21434 | -4/Warlord | Build established: Scavenger-Mutant 21463 | -4/Warlord | Found Prototype Processor 21463 | -4/Warlord | Identified Exp. Core Analyzer 21469 | -4/Warlord | Found Prototype Device 21469 | -4/Warlord | Identified Exp. Cloaking Device 21473 | -4/Warlord | Found Prototype Reactor 21584 | -4/Warlord | Received a Watcher feed algorithm from an ecstatic Tinkerer 21603 | -4/Warlord | Visited the Vortex Lab 21611 | -4/Warlord | Found Prototype Piercing Weapon 21613 | -4/Warlord | Found Prototype Piercing Weapon 21620 | -4/Warlord | Warlord's base attacked by MAIN.C 21705 | -4/Warlord | Identified Vortex Lance (x2) 21970 | -4/Warlord | Warlord forces counterattacked 22176 | -4/Warlord | Spotted Striker 22286 | -4/Warlord | Spotted Striker 22295 | -4/Warlord | Warlord base infiltrated, sounded retreat 22296 | -4/Warlord | Destroyed Striker 22333 | -4/Warlord | Lost 7 allies 22425 | -4/Warlord | Discovered new exit (range 14) 22435 | -4/Warlord | Identified exit to Proximity Caves 22458 | -4/Warlord | Spotted Executioner 22472 | -4/Warlord | Entered Proximity Caves 22581 | -3/Proximity Caves | Build established: Scavenger-Tank 22763 | -3/Proximity Caves | Discovered exit to Research (range 13) 22866 | -3/Proximity Caves | Entered Research 22866 | -3/Research | Evolved 2 slots: Utility x2 22921 | -3/Research | Garrison activated, responded to threat 22961 | -3/Research | Spotted B-86 Titan 23019 | -3/Research | Destroyed B-86 Titan 23046 | -3/Research | Destroyed 8 combat bots 23066 | -3/Research | Revision forces began assault on 0b10 23109 | -3/Research | Met up with Revision 17++ 23222 | -3/Research | Lost 3 allies 23505 | -3/Research | Discovered new exit (range 20) 23510 | -3/Research | Build established: Scavenger-Gunner 23566 | -3/Research | Research terminal network offline 24184 | -3/Research | Discovered new exit (range 8) 24227 | -3/Research | Spotted Striker 24228 | -3/Research | Spotted Striker 24236 | -3/Research | Destroyed Striker 24258 | -3/Research | Destroyed Striker 24591 | -3/Research | Spotted Striker 24598 | -3/Research | Build established: Scavenger-Tank 24602 | -3/Research | Destroyed Striker 24643 | -3/Research | Spotted Striker 24655 | -3/Research | Destroyed Striker 24695 | -3/Research | System corruption reached 10% 24724 | -3/Research | Spotted Striker 24726 | -3/Research | Spotted Striker 24750 | -3/Research | Destroyed Striker 24765 | -3/Research | Destroyed Striker 24994 | -3/Research | Spotted Executioner 24995 | -3/Research | Spotted Striker 25004 | -3/Research | Identified Transdimensional Reconstructor 25004 | -3/Research | Warped through subspace 25010 | -3/Research | Discovered new exit (range 7) 25187 | -3/Research | Discovered new exit (range 8) 25438 | -3/Research | Spotted Striker 25536 | -3/Research | Spotted Executioner 25543 | -3/Research | Spotted Striker 25549 | -3/Research | Entered Testing 25722 | -3/Testing | Found Prototype Energy Cannon 25723 | -3/Testing | Identified Potential Cannon 25726 | -3/Testing | Found Prototype Energy Cannon 25726 | -3/Testing | Identified Imp. Potential Cannon 25792 | -3/Testing | Found Prototype Device 25792 | -3/Testing | Identified Adv. Kinecellerator 26010 | -3/Testing | Lost 4 parts (1p2u1w) 26100 | -3/Testing | Found Prototype Energy Cannon 26101 | -3/Testing | Identified Cld. Nova Cannon 26357 | -3/Testing | Found Exp. Thermal Shield 26419 | -3/Testing | Build established: Infiltrator-Tank 26497 | -3/Testing | Discovered new exit (range 15) 26549 | -3/Testing | First assault squad dispatched 26584 | -3/Testing | Identified exit to Research 26657 | -3/Testing | Found Prototype Protection 26675 | -3/Testing | Entered Research 26675 | -2/Research | Evolved 2 slots: Utility x2 26676 | -2/Research | Identified SHELL Armor 26749 | -2/Research | Discovered new exit (range 7) 26755 | -2/Research | Identified exit to Access 27236 | -2/Research | Build established: Skirmisher 27511 | -2/Research | System corruption reached 10% 27551 | -2/Research | Lost 3 parts (3u) 27554 | -2/Research | Destroyed 7 combat bots 27788 | -2/Research | Found Prototype Device 27788 | -2/Research | Identified Thermal Barrier 27925 | -2/Research | First assault squad dispatched 28361 | -2/Research | System corruption reached 30% 28500 | -2/Research | Build established: Scavenger-Tank 28579 | -2/Research | Discovered exit to Access (range 8) 28778 | -2/Research | Discovered exit to Access (range 3) 29017 | -2/Research | Unchained authorized (QV-33N) 29023 | -2/Research | Build established: Skirmisher 29119 | -2/Research | Entered Access 29119 | -1/Access | Evolved 2 slots: Propulsion x1, Utility x1 29304 | -1/Access | Unchained authorized (QV-33N) 29333 | -1/Access | Lost 6 allies 29423 | -1/Access | Lost 3 allies 29869 | -1/Access | First assault squad dispatched 30233 | -1/Access | Build established: Gunner 30270 | -1/Access | Identified exit to Surface 30657 | -1/Access | Lost 3 parts (1p2u) 30665 | -1/Access | Destroyed 7 combat bots 30712 | -1/Access | Lost 3 parts (2n1w) 30766 | -1/Access | Lost 5 parts (1n1u3w) 30959 | -1/Access | System corruption reached 10% 31291 | -1/Access | Build established: Scavenger-Gunner 31298 | -1/Access | Spotted B-99 Colossus 31299 | -1/Access | Spotted B-99 Colossus 31323 | -1/Access | Released all parts (14) 31324 | -1/Access | Core integrity fell below 50% 31331 | -1/Access | Core integrity fell below 20% 31333 | *** | Escaped! Last Messages --------------- 31327_ Acquired 4 matter. 31329_ P-80 Master resets L-61 Swordsman, system corruption cleaned. 31329_ Penetrated by Slug. 31329_ Slug penetrates Sealed Heavy Doors. 31329_ Penetrated by Slug. 31329_ Slug penetrates Sealed Heavy Doors. 31330_ BII ZK,9RCXVT9JKF => 31330_ Main Access Shell breached. 31330_ Penetrated by Slug. 31330_ Slug penetrates Sealed Heavy Doors. 31330_ Penetrated by Slug. 31330_ Slug penetrates Sealed Heavy Doors. 31331_ P-80 Master resets B-74 Champion, system corruption cleaned. 31333_ Penetrated by Slug. 31333_ Slug penetrates Main Access Shell. 31333_ Slug penetrates Sealed Heavy Doors. 31333_ Slug penetrates Main Access Shell. 31333_ Penetrated by Slug. 31333_ Slug penetrates Main Access Shell. [Achievement: I Was Wrong!] Map ----- +----------------------------------------------------+ | ?????????????????????????????????????????????????? | | ?????????????????????????????????????????????????? | | ?????????????????????????????????????????????????? | | ?????????????????????????????????????????????????? | | ?????????????????????????????????????????????????? | | ?????????????????????????????????????????????????? | | ?????????????????????????????????????????????????? | | ?????????????????????????????????????????????????? | | ?????????????????????????????????????????????????? | | ?????????????????????????????????????????????????? | | ?????????????????????????????????????????????????? | | ?????????????????????????????????????????????????? | | ?????????????????????????????????????????????????? | | ?????????????????????????????????????????????????? | | ?????????????????????????????????????????????????? | | ?????????????????????????????????????????????????? | | ?????????????????????????????????????????????????? | | ?????????????????????????????????????????????????? | | ?????????????????????????????????????????????????? | | ?????????????????????????????????????????????????? | | ?????????????????????????????????????????????????? | | ?????????????????????????????????????????????????? | | ?????????????????????????????????????????????????? | | ???????????????????????""""""????????????????????? | | ???????????????????????" "????????????????????? | | ???????????????????????" @"%"??#?????????????????? | | ????????????????????#??" "" "? #?????????????????? | | ????????????????????# ?" " #?????????????????? | | ????????????????????# "" " " #?????????????????? | | ????????????????????# #?????????????????? | | ????????????????????#"""" """#?????????????????? | | ???????????????????????" "???????????????????? | | ??????????????????????"" ""??????????????????? | | ????????????????????#"" "#?????????????????? | | ????????????????????# #?????????????????? | | ????????????????????# #?????????????????? | | ????????????????????# B #?????????????????? | | ????????????????????# B B #?????????????????? | | ????????????????????# B l #?????????????????? | | ????????????????????# #?????????????????? | | ????????????????????# b #?????????????????? | | ????????????????????#### %####?????????????????? | | ???????????????????????# %##???????????????????? | | ???????????????????????#|!= "##################### | | ???????????????????????#!=]% | | ???????????????????????#=![|=% | | ???????????????????????#*!][!%* % % | | ????????????????????####!=/% ! % % | | +######+###############!####"########## ########## | | %=[ ##### #??????? | +----------------------------------------------------+ Best States ------------- Heat Dissipation 136 Coolant Potential 120 Energy Generation 64 Energy Capacity 960 Matter Stores 342 Matter Capacity 450 Sight Range 22 Robot Scan Range 16 Terrain Scan Range 18 Terrain Scan Density 10 Jamming Range 16 Cloak Strength 4 Power Amplification 30 Armor Coverage 1500 Resistance: KI 30 Resistance: TH 30 Resistance: EX 25 Resistance: EM 25 Weapon Cycling 20 Phase Shifting 10 Evasion (%) 70 Targeting Accuracy 16 Target Analysis 6 Core Analysis 8 Recoil Reduction 6 Energy Filtering 30 Kinecelleration 40 Offensive Hacking 12 Item Schematics ----------------- Assault Drone Bay | -5/Zhirov | Free Exp. Heat Sink | -5/Zhirov | Free Exp. Optical Array | -5/Zhirov | Free Imp. Arc Thrower | -5/Zhirov | Free Robot Schematics ------------------ None Fabricated ------------ Nothing Repaired ---------- Hrd. Light Armor Plating | 47% | -9/Materials Adv. Sensor Array | 8% | -4/Factory Studied --------- None Alien Tech Used ----------------- Core Expander Integrated Reactor Transdimensional Reconstructor Achievements -------------- I Was Wrong! No Room For Error The Better Part Of Valor Challenges ------------ None Game ------ Seed IntegratedWeaponsLink Manual? 0 Play Time 07:52:31 Cumulative 216.4 hours Start 2026.01.23 @ 06:17:26 End 2026.01.25 @ 06:53:55 Sessions 13 Manual Loads 0 Difficulty Rogue Special Mode None Game No. 97 Rogue 97 Adventurer 0 Explorer 0 Win Type 0 Total 24 Types 11/0/7/1/0/1/1/0/0/3 Lore% 75 Gallery% 73 Achievement% 55 Wizard Run 0 Options --------- Layout 0 ASCII 0 Keyboard 1 Movement Numpad Keybinds 0 Fullscreen 1 Font 18/Smallcaps Map View 76x50 Zoom Use 0% Tactical HUD 1 Map Filters SATURATION(90)|BRIGHTNESS(110) Filters NONE Steam 0 RUN: 491a50a4-494e-4902-b53c-52a96f5a72d2